Workbook

Sheet Buchungen
A1: Haushaltsbuch – Buchungen
A2: Trage hier alle Einnahmen und Ausgaben ein. Nutze ‘Typ’ + ‘Kategorie’. Betrag immer positiv eingeben.
A5: Datum | B5: Typ | C5: Kategorie | D5: Beschreibung | E5: Betrag (€) | F5: Zahlungsmittel | G5: Monat | H5: Jahr | I5: Betrag_signiert
A6: 2026-01-01 | B6: Einnahme | C6: Gehalt | D6: Monatsgehalt | E6: € 3,200.00 | F6: Überweisung | G6: =IF($A6="","",MONTH($A6)) -> 1 | H6: =IF($A6="","",YEAR($A6)) -> 2026 | I6: =IF($B6="","",IF($B6="Ausgabe",-ABS($E6),ABS($E6))) -> € 3,200.00
A7: 2026-01-02 | B7: Ausgabe | C7: Transport | D7: ÖPNV | E7: € 49.00 | F7: Lastschrift | G7: 1 | H7: 2026 | I7: -€ 49.00
A8: 2026-01-03 | B8: Ausgabe | C8: Miete | D8: Warmmiete | E8: € 950.00 | F8: Überweisung | G8: 1 | H8: 2026 | I8: -€ 950.00
A9: 2026-01-03 | B9: Ausgabe | C9: Lebensmittel | D9: Supermarkt | E9: € 128.00 | F9: Karte | G9: 1 | H9: 2026 | I9: -€ 128.00
A10: 2026-01-04 | B10: Ausgabe | C10: Lebensmittel | D10: Supermarkt | E10: € 106.00 | F10: Karte | G10: 1 | H10: 2026 | I10: -€ 106.00
A11: 2026-01-05 | B11: Ausgabe | C11: Lebensmittel | D11: Supermarkt | E11: € 110.00 | F11: Karte | G11: 1 | H11: 2026 | I11: -€ 110.00
A12: 2026-01-07 | B12: Ausgabe | C12: Nebenkosten | D12: Strom/Wasser | E12: € 185.00 | F12: Lastschrift | G12: 1 | H12: 2026 | I12: -€ 185.00
A13: 2026-01-10 | B13: Ausgabe | C13: Abos | D13: Streaming | E13: € 35.00 | F13: PayPal | G13: 1 | H13: 2026 | I13: -€ 35.00
A14: 2026-01-17 | B14: Ausgabe | C14: Freizeit | D14: Restaurant/Kino | E14: € 33.00 | F14: Karte | G14: 1 | H14: 2026 | I14: -€ 33.00
A15: 2026-01-19 | B15: Ausgabe | C15: Freizeit | D15: Restaurant/Kino | E15: € 23.00 | F15: Karte | G15: 1 | H15: 2026 | I15: -€ 23.00
A16: 2026-01-21 | B16: Ausgabe | C16: Lebensmittel | D16: Supermarkt | E16: € 66.00 | F16: Karte | G16: 1 | H16: 2026 | I16: -€ 66.00
A17: 2026-02-01 | B17: Einnahme | C17: Gehalt | D17: Monatsgehalt | E17: € 3,200.00 | F17: Überweisung | G17: 2 | H17: 2026 | I17: € 3,200.00
A18: 2026-02-02 | B18: Ausgabe | C18: Freizeit | D18: Restaurant/Kino | E18: € 72.00 | F18: Karte | G18: 2 | H18: 2026 | I18: -€ 72.00
A19: 2026-02-02 | B19: Ausgabe | C19: Transport | D19: ÖPNV | E19: € 49.00 | F19: Lastschrift | G19: 2 | H19: 2026 | I19: -€ 49.00
A20: 2026-02-03 | B20: Ausgabe | C20: Miete | D20: Warmmiete | E20: € 950.00 | F20: Überweisung | G20: 2 | H20: 2026 | I20: -€ 950.00
A21: 2026-02-03 | B21: Ausgabe | C21: Lebensmittel | D21: Supermarkt | E21: € 115.00 | F21: Karte | G21: 2 | H21: 2026 | I21: -€ 115.00
A22: 2026-02-07 | B22: Ausgabe | C22: Nebenkosten | D22: Strom/Wasser | E22: € 160.00 | F22: Lastschrift | G22: 2 | H22: 2026 | I22: -€ 160.00
A23: 2026-02-08 | B23: Ausgabe | C23: Lebensmittel | D23: Supermarkt | E23: € 71.00 | F23: Karte | G23: 2 | H23: 2026 | I23: -€ 71.00
A24: 2026-02-10 | B24: Ausgabe | C24: Abos | D24: Streaming | E24: € 35.00 | F24: PayPal | G24: 2 | H24: 2026 | I24: -€ 35.00
A25: 2026-02-14 | B25: Ausgabe | C25: Lebensmittel | D25: Supermarkt | E25: € 68.00 | F25: Karte | G25: 2 | H25: 2026 | I25: -€ 68.00
A26: 2026-02-18 | B26: Ausgabe | C26: Lebensmittel | D26: Supermarkt | E26: € 114.00 | F26: Karte | G26: 2 | H26: 2026 | I26: -€ 114.00
A27: 2026-02-19 | B27: Ausgabe | C27: Freizeit | D27: Restaurant/Kino | E27: € 27.00 | F27: Karte | G27: 2 | H27: 2026 | I27: -€ 27.00
A28: 2026-03-01 | B28: Einnahme | C28: Gehalt | D28: Monatsgehalt | E28: € 3,200.00 | F28: Überweisung | G28: 3 | H28: 2026 | I28: € 3,200.00
A29: 2026-03-02 | B29: Ausgabe | C29: Transport | D29: ÖPNV | E29: € 49.00 | F29: Lastschrift | G29: 3 | H29: 2026 | I29: -€ 49.00
A30: 2026-03-03 | B30: Ausgabe | C30: Miete | D30: Warmmiete | E30: € 950.00 | F30: Überweisung | G30: 3 | H30: 2026 | I30: -€ 950.00
A31: 2026-03-07 | B31: Ausgabe | C31: Nebenkosten | D31: Strom/Wasser | E31: € 175.00 | F31: Lastschrift | G31: 3 | H31: 2026 | I31: -€ 175.00
A32: 2026-03-08 | B32: Ausgabe | C32: Freizeit | D32: Restaurant/Kino | E32: € 22.00 | F32: Karte | G32: 3 | H32: 2026 | I32: -€ 22.00
A33: 2026-03-10 | B33: Ausgabe | C33: Abos | D33: Streaming | E33: € 35.00 | F33: PayPal | G33: 3 | H33: 2026 | I33: -€ 35.00
A34: 2026-03-13 | B34: Ausgabe | C34: Lebensmittel | D34: Supermarkt | E34: € 66.00 | F34: Karte | G34: 3 | H34: 2026 | I34: -€ 66.00
A35: 2026-03-18 | B35: Ausgabe | C35: Freizeit | D35: Restaurant/Kino | E35: € 74.00 | F35: Karte | G35: 3 | H35: 2026 | I35: -€ 74.00
A36: 2026-03-19 | B36: Ausgabe | C36: Lebensmittel | D36: Supermarkt | E36: € 67.00 | F36: Karte | G36: 3 | H36: 2026 | I36: -€ 67.00
A37: 2026-03-19 | B37: Ausgabe | C37: Lebensmittel | D37: Supermarkt | E37: € 134.00 | F37: Karte | G37: 3 | H37: 2026 | I37: -€ 134.00
A38: 2026-03-21 | B38: Ausgabe | C38: Lebensmittel | D38: Supermarkt | E38: € 140.00 | F38: Karte | G38: 3 | H38: 2026 | I38: -€ 140.00
A39: 2026-04-01 | B39: Einnahme | C39: Gehalt | D39: Monatsgehalt | E39: € 3,200.00 | F39: Überweisung | G39: 4 | H39: 2026 | I39: € 3,200.00
A40: 2026-04-02 | B40: Ausgabe | C40: Transport | D40: ÖPNV | E40: € 49.00 | F40: Lastschrift | G40: 4 | H40: 2026 | I40: -€ 49.00
A41: 2026-04-03 | B41: Ausgabe | C41: Miete | D41: Warmmiete | E41: € 950.00 | F41: Überweisung | G41: 4 | H41: 2026 | I41: -€ 950.00
A42: 2026-04-04 | B42: Ausgabe | C42: Lebensmittel | D42: Supermarkt | E42: € 133.00 | F42: Karte | G42: 4 | H42: 2026 | I42: -€ 133.00
A43: 2026-04-05 | B43: Ausgabe | C43: Lebensmittel | D43: Supermarkt | E43: € 129.00 | F43: Karte | G43: 4 | H43: 2026 | I43: -€ 129.00
A44: 2026-04-06 | B44: Ausgabe | C44: Freizeit | D44: Restaurant/Kino | E44: € 26.00 | F44: Karte | G44: 4 | H44: 2026 | I44: -€ 26.00
A45: 2026-04-07 | B45: Ausgabe | C45: Nebenkosten | D45: Strom/Wasser | E45: € 175.00 | F45: Lastschrift | G45: 4 | H45: 2026 | I45: -€ 175.00
A46: 2026-04-10 | B46: Ausgabe | C46: Lebensmittel | D46: Supermarkt | E46: € 113.00 | F46: Karte | G46: 4 | H46: 2026 | I46: -€ 113.00
A47: 2026-04-10 | B47: Ausgabe | C47: Lebensmittel | D47: Supermarkt | E47: € 131.00 | F47: Karte | G47: 4 | H47: 2026 | I47: -€ 131.00
A48: 2026-04-10 | B48: Ausgabe | C48: Abos | D48: Streaming | E48: € 35.00 | F48: PayPal | G48: 4 | H48: 2026 | I48: -€ 35.00
A49: 2026-04-27 | B49: Ausgabe | C49: Freizeit | D49: Restaurant/Kino | E49: € 63.00 | F49: Karte | G49: 4 | H49: 2026 | I49: -€ 63.00
A50: 2026-05-01 | B50: Einnahme | C50: Gehalt | D50: Monatsgehalt | E50: € 3,200.00 | F50: Überweisung | G50: 5 | H50: 2026 | I50: € 3,200.00
A51: 2026-05-02 | B51: Ausgabe | C51: Transport | D51: ÖPNV | E51: € 49.00 | F51: Lastschrift | G51: 5 | H51: 2026 | I51: -€ 49.00
A52: 2026-05-03 | B52: Ausgabe | C52: Miete | D52: Warmmiete | E52: € 950.00 | F52: Überweisung | G52: 5 | H52: 2026 | I52: -€ 950.00
A53: 2026-05-07 | B53: Ausgabe | C53: Nebenkosten | D53: Strom/Wasser | E53: € 175.00 | F53: Lastschrift | G53: 5 | H53: 2026 | I53: -€ 175.00
A54: 2026-05-10 | B54: Ausgabe | C54: Abos | D54: Streaming | E54: € 35.00 | F54: PayPal | G54: 5 | H54: 2026 | I54: -€ 35.00
A55: 2026-05-12 | B55: Ausgabe | C55: Lebensmittel | D55: Supermarkt | E55: € 72.00 | F55: Karte | G55: 5 | H55: 2026 | I55: -€ 72.00
A56: 2026-05-16 | B56: Ausgabe | C56: Freizeit | D56: Restaurant/Kino | E56: € 63.00 | F56: Karte | G56: 5 | H56: 2026 | I56: -€ 63.00
A57: 2026-05-18 | B57: Ausgabe | C57: Lebensmittel | D57: Supermarkt | E57: € 68.00 | F57: Karte | G57: 5 | H57: 2026 | I57: -€ 68.00
A58: 2026-05-18 | B58: Ausgabe | C58: Freizeit | D58: Restaurant/Kino | E58: € 47.00 | F58: Karte | G58: 5 | H58: 2026 | I58: -€ 47.00
A59: 2026-05-19 | B59: Ausgabe | C59: Lebensmittel | D59: Supermarkt | E59: € 67.00 | F59: Karte | G59: 5 | H59: 2026 | I59: -€ 67.00
A60: 2026-05-20 | B60: Ausgabe | C60: Lebensmittel | D60: Supermarkt | E60: € 86.00 | F60: Karte | G60: 5 | H60: 2026 | I60: -€ 86.00
A61: 2026-06-01 | B61: Einnahme | C61: Gehalt | D61: Monatsgehalt | E61: € 3,200.00 | F61: Überweisung | G61: 6 | H61: 2026 | I61: € 3,200.00
A62: 2026-06-02 | B62: Ausgabe | C62: Transport | D62: ÖPNV | E62: € 49.00 | F62: Lastschrift | G62: 6 | H62: 2026 | I62: -€ 49.00
A63: 2026-06-03 | B63: Ausgabe | C63: Miete | D63: Warmmiete | E63: € 950.00 | F63: Überweisung | G63: 6 | H63: 2026 | I63: -€ 950.00
A64: 2026-06-07 | B64: Ausgabe | C64: Nebenkosten | D64: Strom/Wasser | E64: € 185.00 | F64: Lastschrift | G64: 6 | H64: 2026 | I64: -€ 185.00
A65: 2026-06-08 | B65: Ausgabe | C65: Freizeit | D65: Restaurant/Kino | E65: € 25.00 | F65: Karte | G65: 6 | H65: 2026 | I65: -€ 25.00
A66: 2026-06-10 | B66: Ausgabe | C66: Lebensmittel | D66: Supermarkt | E66: € 91.00 | F66: Karte | G66: 6 | H66: 2026 | I66: -€ 91.00
A67: 2026-06-10 | B67: Ausgabe | C67: Abos | D67: Streaming | E67: € 35.00 | F67: PayPal | G67: 6 | H67: 2026 | I67: -€ 35.00
A68: 2026-06-15 | B68: Einnahme | C68: Bonus | D68: Sommerbonus | E68: € 800.00 | F68: Überweisung | G68: 6 | H68: 2026 | I68: € 800.00
A69: 2026-06-15 | B69: Ausgabe | C69: Lebensmittel | D69: Supermarkt | E69: € 134.00 | F69: Karte | G69: 6 | H69: 2026 | I69: -€ 134.00
A70: 2026-06-15 | B70: Ausgabe | C70: Lebensmittel | D70: Supermarkt | E70: € 106.00 | F70: Karte | G70: =IF($A70="","",MONTH($A70)) -> 6 | H70: =IF($A70="","",YEAR($A70)) -> 2026 | I70: =IF($B70="","",IF($B70="Ausgabe",-ABS($E70),ABS($E70))) -> -€ 106.00
A71: 2026-06-23 | B71: Ausgabe | C71: Freizeit | D71: Restaurant/Kino | E71: € 69.00 | F71: Karte | G71: 6 | H71: 2026 | I71: -€ 69.00
A72: 2026-06-26 | B72: Ausgabe | C72: Lebensmittel | D72: Supermarkt | E72: € 83.00 | F72: Karte | G72: 6 | H72: 2026 | I72: -€ 83.00
A73: 2026-07-01 | B73: Einnahme | C73: Gehalt | D73: Monatsgehalt | E73: € 3,200.00 | F73: Überweisung | G73: 7 | H73: 2026 | I73: € 3,200.00
A74: 2026-07-02 | B74: Ausgabe | C74: Transport | D74: ÖPNV | E74: € 49.00 | F74: Lastschrift | G74: 7 | H74: 2026 | I74: -€ 49.00
A75: 2026-07-03 | B75: Ausgabe | C75: Miete | D75: Warmmiete | E75: € 950.00 | F75: Überweisung | G75: 7 | H75: 2026 | I75: -€ 950.00
A76: 2026-07-03 | B76: Ausgabe | C76: Lebensmittel | D76: Supermarkt | E76: € 75.00 | F76: Karte | G76: 7 | H76: 2026 | I76: -€ 75.00
A77: 2026-07-06 | B77: Ausgabe | C77: Freizeit | D77: Restaurant/Kino | E77: € 68.00 | F77: Karte | G77: 7 | H77: 2026 | I77: -€ 68.00
A78: 2026-07-07 | B78: Ausgabe | C78: Nebenkosten | D78: Strom/Wasser | E78: € 185.00 | F78: Lastschrift | G78: 7 | H78: 2026 | I78: -€ 185.00
A79: 2026-07-10 | B79: Ausgabe | C79: Lebensmittel | D79: Supermarkt | E79: € 137.00 | F79: Karte | G79: 7 | H79: 2026 | I79: -€ 137.00
A80: 2026-07-10 | B80: Ausgabe | C80: Abos | D80: Streaming | E80: € 35.00 | F80: PayPal | G80: 7 | H80: 2026 | I80: -€ 35.00
A81: 2026-07-11 | B81: Ausgabe | C81: Lebensmittel | D81: Supermarkt | E81: € 117.00 | F81: Karte | G81: 7 | H81: 2026 | I81: -€ 117.00
A82: 2026-07-17 | B82: Ausgabe | C82: Lebensmittel | D82: Supermarkt | E82: € 123.00 | F82: Karte | G82: 7 | H82: 2026 | I82: -€ 123.00
A83: 2026-07-17 | B83: Ausgabe | C83: Freizeit | D83: Restaurant/Kino | E83: € 46.00 | F83: Karte | G83: 7 | H83: 2026 | I83: -€ 46.00
A84: 2026-08-01 | B84: Einnahme | C84: Gehalt | D84: Monatsgehalt | E84: € 3,200.00 | F84: Überweisung | G84: 8 | H84: 2026 | I84: € 3,200.00
A85: 2026-08-02 | B85: Ausgabe | C85: Transport | D85: ÖPNV | E85: € 49.00 | F85: Lastschrift | G85: 8 | H85: 2026 | I85: -€ 49.00
A86: 2026-08-03 | B86: Ausgabe | C86: Miete | D86: Warmmiete | E86: € 950.00 | F86: Überweisung | G86: 8 | H86: 2026 | I86: -€ 950.00
A87: 2026-08-05 | B87: Ausgabe | C87: Lebensmittel | D87: Supermarkt | E87: € 122.00 | F87: Karte | G87: 8 | H87: 2026 | I87: -€ 122.00
A88: 2026-08-05 | B88: Ausgabe | C88: Urlaub | D88: Hotel | E88: € 650.00 | F88: Karte | G88: 8 | H88: 2026 | I88: -€ 650.00
A89: 2026-08-06 | B89: Ausgabe | C89: Urlaub | D89: Flug | E89: € 280.00 | F89: Karte | G89: 8 | H89: 2026 | I89: -€ 280.00
A90: 2026-08-07 | B90: Ausgabe | C90: Nebenkosten | D90: Strom/Wasser | E90: € 185.00 | F90: Lastschrift | G90: 8 | H90: 2026 | I90: -€ 185.00
A91: 2026-08-10 | B91: Ausgabe | C91: Abos | D91: Streaming | E91: € 35.00 | F91: PayPal | G91: 8 | H91: 2026 | I91: -€ 35.00
A92: 2026-08-14 | B92: Ausgabe | C92: Lebensmittel | D92: Supermarkt | E92: € 65.00 | F92: Karte | G92: 8 | H92: 2026 | I92: -€ 65.00
A93: 2026-08-19 | B93: Ausgabe | C93: Freizeit | D93: Restaurant/Kino | E93: € 70.00 | F93: Karte | G93: 8 | H93: 2026 | I93: -€ 70.00
A94: 2026-08-22 | B94: Ausgabe | C94: Lebensmittel | D94: Supermarkt | E94: € 69.00 | F94: Karte | G94: 8 | H94: 2026 | I94: -€ 69.00
A95: 2026-08-25 | B95: Ausgabe | C95: Lebensmittel | D95: Supermarkt | E95: € 131.00 | F95: Karte | G95: 8 | H95: 2026 | I95: -€ 131.00
A96: 2026-08-27 | B96: Ausgabe | C96: Freizeit | D96: Restaurant/Kino | E96: € 40.00 | F96: Karte | G96: 8 | H96: 2026 | I96: -€ 40.00
A97: 2026-09-01 | B97: Einnahme | C97: Gehalt | D97: Monatsgehalt | E97: € 3,200.00 | F97: Überweisung | G97: 9 | H97: 2026 | I97: € 3,200.00
A98: 2026-09-02 | B98: Ausgabe | C98: Transport | D98: ÖPNV | E98: € 49.00 | F98: Lastschrift | G98: 9 | H98: 2026 | I98: -€ 49.00
A99: 2026-09-03 | B99: Ausgabe | C99: Miete | D99: Warmmiete | E99: € 950.00 | F99: Überweisung | G99: 9 | H99: 2026 | I99: -€ 950.00
A100: 2026-09-03 | B100: Ausgabe | C100: Lebensmittel | D100: Supermarkt | E100: € 71.00 | F100: Karte | G100: 9 | H100: 2026 | I100: -€ 71.00
A101: 2026-09-07 | B101: Ausgabe | C101: Nebenkosten | D101: Strom/Wasser | E101: € 185.00 | F101: Lastschrift | G101: 9 | H101: 2026 | I101: -€ 185.00
A102: 2026-09-09 | B102: Ausgabe | C102: Freizeit | D102: Restaurant/Kino | E102: € 50.00 | F102: Karte | G102: 9 | H102: 2026 | I102: -€ 50.00
A103: 2026-09-10 | B103: Ausgabe | C103: Abos | D103: Streaming | E103: € 35.00 | F103: PayPal | G103: 9 | H103: 2026 | I103: -€ 35.00
A104: 2026-09-19 | B104: Ausgabe | C104: Lebensmittel | D104: Supermarkt | E104: € 118.00 | F104: Karte | G104: 9 | H104: 2026 | I104: -€ 118.00
A105: 2026-09-20 | B105: Ausgabe | C105: Lebensmittel | D105: Supermarkt | E105: € 123.00 | F105: Karte | G105: 9 | H105: 2026 | I105: -€ 123.00
A106: 2026-09-23 | B106: Ausgabe | C106: Lebensmittel | D106: Supermarkt | E106: € 104.00 | F106: Karte | G106: 9 | H106: 2026 | I106: -€ 104.00
A107: 2026-09-23 | B107: Ausgabe | C107: Freizeit | D107: Restaurant/Kino | E107: € 62.00 | F107: Karte | G107: 9 | H107: 2026 | I107: -€ 62.00
A108: 2026-10-01 | B108: Einnahme | C108: Gehalt | D108: Monatsgehalt | E108: € 3,200.00 | F108: Überweisung | G108: 10 | H108: 2026 | I108: € 3,200.00
A109: 2026-10-01 | B109: Ausgabe | C109: Freizeit | D109: Restaurant/Kino | E109: € 80.00 | F109: Karte | G109: 10 | H109: 2026 | I109: -€ 80.00
A110: 2026-10-02 | B110: Ausgabe | C110: Lebensmittel | D110: Supermarkt | E110: € 99.00 | F110: Karte | G110: 10 | H110: 2026 | I110: -€ 99.00
A111: 2026-10-02 | B111: Ausgabe | C111: Transport | D111: ÖPNV | E111: € 49.00 | F111: Lastschrift | G111: 10 | H111: 2026 | I111: -€ 49.00
A112: 2026-10-03 | B112: Ausgabe | C112: Miete | D112: Warmmiete | E112: € 950.00 | F112: Überweisung | G112: 10 | H112: 2026 | I112: -€ 950.00
A113: 2026-10-07 | B113: Ausgabe | C113: Nebenkosten | D113: Strom/Wasser | E113: € 160.00 | F113: Lastschrift | G113: 10 | H113: 2026 | I113: -€ 160.00
A114: 2026-10-10 | B114: Ausgabe | C114: Lebensmittel | D114: Supermarkt | E114: € 109.00 | F114: Karte | G114: 10 | H114: 2026 | I114: -€ 109.00
A115: 2026-10-10 | B115: Ausgabe | C115: Abos | D115: Streaming | E115: € 35.00 | F115: PayPal | G115: 10 | H115: 2026 | I115: -€ 35.00
A116: 2026-10-21 | B116: Ausgabe | C116: Lebensmittel | D116: Supermarkt | E116: € 133.00 | F116: Karte | G116: 10 | H116: 2026 | I116: -€ 133.00
A117: 2026-10-22 | B117: Ausgabe | C117: Lebensmittel | D117: Supermarkt | E117: € 117.00 | F117: Karte | G117: 10 | H117: 2026 | I117: -€ 117.00
A118: 2026-10-22 | B118: Ausgabe | C118: Freizeit | D118: Restaurant/Kino | E118: € 42.00 | F118: Karte | G118: 10 | H118: 2026 | I118: -€ 42.00
A119: 2026-11-01 | B119: Einnahme | C119: Gehalt | D119: Monatsgehalt | E119: € 3,200.00 | F119: Überweisung | G119: 11 | H119: 2026 | I119: € 3,200.00
A120: 2026-11-02 | B120: Ausgabe | C120: Transport | D120: ÖPNV | E120: € 49.00 | F120: Lastschrift | G120: 11 | H120: 2026 | I120: -€ 49.00
A121: 2026-11-03 | B121: Ausgabe | C121: Miete | D121: Warmmiete | E121: € 950.00 | F121: Überweisung | G121: 11 | H121: 2026 | I121: -€ 950.00
A122: 2026-11-05 | B122: Ausgabe | C122: Freizeit | D122: Restaurant/Kino | E122: € 67.00 | F122: Karte | G122: 11 | H122: 2026 | I122: -€ 67.00
A123: 2026-11-07 | B123: Ausgabe | C123: Nebenkosten | D123: Strom/Wasser | E123: € 190.00 | F123: Lastschrift | G123: 11 | H123: 2026 | I123: -€ 190.00
A124: 2026-11-07 | B124: Ausgabe | C124: Lebensmittel | D124: Supermarkt | E124: € 96.00 | F124: Karte | G124: 11 | H124: 2026 | I124: -€ 96.00
A125: 2026-11-08 | B125: Ausgabe | C125: Freizeit | D125: Restaurant/Kino | E125: € 45.00 | F125: Karte | G125: 11 | H125: 2026 | I125: -€ 45.00
A126: 2026-11-10 | B126: Ausgabe | C126: Abos | D126: Streaming | E126: € 35.00 | F126: PayPal | G126: 11 | H126: 2026 | I126: -€ 35.00
A127: 2026-11-12 | B127: Ausgabe | C127: Lebensmittel | D127: Supermarkt | E127: € 81.00 | F127: Karte | G127: 11 | H127: 2026 | I127: -€ 81.00
A128: 2026-11-16 | B128: Ausgabe | C128: Lebensmittel | D128: Supermarkt | E128: € 67.00 | F128: Karte | G128: 11 | H128: 2026 | I128: -€ 67.00
A129: 2026-11-20 | B129: Ausgabe | C129: Lebensmittel | D129: Supermarkt | E129: € 74.00 | F129: Karte | G129: 11 | H129: 2026 | I129: -€ 74.00
A130: 2026-12-01 | B130: Einnahme | C130: Gehalt | D130: Monatsgehalt | E130: € 3,200.00 | F130: Überweisung | G130: 12 | H130: 2026 | I130: € 3,200.00
A131: 2026-12-02 | B131: Ausgabe | C131: Transport | D131: ÖPNV | E131: € 49.00 | F131: Lastschrift | G131: 12 | H131: 2026 | I131: -€ 49.00
A132: 2026-12-03 | B132: Ausgabe | C132: Miete | D132: Warmmiete | E132: € 950.00 | F132: Überweisung | G132: 12 | H132: 2026 | I132: -€ 950.00
A133: 2026-12-03 | B133: Ausgabe | C133: Lebensmittel | D133: Supermarkt | E133: € 81.00 | F133: Karte | G133: 12 | H133: 2026 | I133: -€ 81.00
A134: 2026-12-05 | B134: Ausgabe | C134: Freizeit | D134: Restaurant/Kino | E134: € 72.00 | F134: Karte | G134: =IF($A134="","",MONTH($A134)) -> 12 | H134: =IF($A134="","",YEAR($A134)) -> 2026 | I134: =IF($B134="","",IF($B134="Ausgabe",-ABS($E134),ABS($E134))) -> -€ 72.00
A135: 2026-12-07 | B135: Ausgabe | C135: Nebenkosten | D135: Strom/Wasser | E135: € 190.00 | F135: Lastschrift | G135: 12 | H135: 2026 | I135: -€ 190.00
A136: 2026-12-10 | B136: Ausgabe | C136: Abos | D136: Streaming | E136: € 35.00 | F136: PayPal | G136: 12 | H136: 2026 | I136: -€ 35.00
A137: 2026-12-14 | B137: Ausgabe | C137: Freizeit | D137: Restaurant/Kino | E137: € 75.00 | F137: Karte | G137: 12 | H137: 2026 | I137: -€ 75.00
A138: 2026-12-15 | B138: Ausgabe | C138: Lebensmittel | D138: Supermarkt | E138: € 111.00 | F138: Karte | G138: 12 | H138: 2026 | I138: -€ 111.00
A139: 2026-12-18 | B139: Ausgabe | C139: Lebensmittel | D139: Supermarkt | E139: € 95.00 | F139: Karte | G139: 12 | H139: 2026 | I139: -€ 95.00
A140: 2026-12-28 | B140: Ausgabe | C140: Lebensmittel | D140: Supermarkt | E140: € 123.00 | F140: Karte | G140: 12 | H140: 2026 | I140: -€ 123.00
G198: =IF($A198="","",MONTH($A198)) ->  | H198: =IF($A198="","",YEAR($A198)) ->  | I198: =IF($B198="","",IF($B198="Ausgabe",-ABS($E198),ABS($E198))) -> 
G262: =IF($A262="","",MONTH($A262)) ->  | H262: =IF($A262="","",YEAR($A262)) ->  | I262: =IF($B262="","",IF($B262="Ausgabe",-ABS($E262),ABS($E262))) -> 
G326: =IF($A326="","",MONTH($A326)) ->  | H326: =IF($A326="","",YEAR($A326)) ->  | I326: =IF($B326="","",IF($B326="Ausgabe",-ABS($E326),ABS($E326))) -> 
G390: =IF($A390="","",MONTH($A390)) ->  | H390: =IF($A390="","",YEAR($A390)) ->  | I390: =IF($B390="","",IF($B390="Ausgabe",-ABS($E390),ABS($E390))) -> 
G454: =IF($A454="","",MONTH($A454)) ->  | H454: =IF($A454="","",YEAR($A454)) ->  | I454: =IF($B454="","",IF($B454="Ausgabe",-ABS($E454),ABS($E454))) -> 

Sheet Übersicht
A1: Haushaltsbuch Übersicht
A2: Jahr wählen | B2: 2026
A3: Einnahmen (Jahr) | C3: Ausgaben (Jahr) | E3: Saldo (Jahr)
A4: =SUMIFS(Buchungen!$E$6:$E$500,Buchungen!$B$6:$B$500,"Einnahme",Buchungen!$H$6:$H$500,$B$2) -> € 39,200.00 | C4: =-SUMIFS(Buchungen!$I$6:$I$500,Buchungen!$B$6:$B$500,"Ausgabe",Buchungen!$H$6:$H$500,$B$2) -> € 21,588.00 | E4: =SUMIFS(Buchungen!$I$6:$I$500,Buchungen!$H$6:$H$500,$B$2) -> € 17,612.00
A6: Monat | B6: Einnahmen | C6: Ausgaben | D6: Saldo | E6: Kumuliert | G6: Kategorie | H6: Budget/Monat | I6: Ausgaben (Jahr) | J6: Abweichung
A7: =DATE($B$2,1,1) -> 2026-01-01 | B7: =SUMIFS(Buchungen!$E$6:$E$500,Buchungen!$B$6:$B$500,"Einnahme",Buchungen!$H$6:$H$500,$B$2,Buchungen!$G$6:$G$500,MONTH($A7)) -> € 3,200.00 | C7: =-SUMIFS(Buchungen!$I$6:$I$500,Buchungen!$B$6:$B$500,"Ausgabe",Buchungen!$H$6:$H$500,$B$2,Buchungen!$G$6:$G$500,MONTH($A7)) -> € 1,685.00 | D7: =B7-C7 -> € 1,515.00 | E7: =SUM($D$7:D7) -> € 1,515.00 | G7: Miete | H7: =IFERROR(VLOOKUP($G7,Listen!$A$34:$B$60,2,FALSE),0) -> € 950.00 | I7: =-SUMIFS(Buchungen!$I$6:$I$500,Buchungen!$B$6:$B$500,"Ausgabe",Buchungen!$H$6:$H$500,$B$2,Buchungen!$C$6:$C$500,$G7) -> € 11,400.00 | J7: =I7-(H7*12) -> € 0.00
A8: =DATE($B$2,2,1) -> 2026-02-01 | B8: =SUMIFS(Buchungen!$E$6:$E$500,Buchungen!$B$6:$B$500,"Einnahme",Buchungen!$H$6:$H$500,$B$2,Buchungen!$G$6:$G$500,MONTH($A8)) -> € 3,200.00 | C8: =-SUMIFS(Buchungen!$I$6:$I$500,Buchungen!$B$6:$B$500,"Ausgabe",Buchungen!$H$6:$H$500,$B$2,Buchungen!$G$6:$G$500,MONTH($A8)) -> € 1,661.00 | D8: € 1,539.00 | E8: =SUM($D$7:D8) -> € 3,054.00 | G8: Nebenkosten | H8: =IFERROR(VLOOKUP($G8,Listen!$A$34:$B$60,2,FALSE),0) -> € 180.00 | I8: =-SUMIFS(Buchungen!$I$6:$I$500,Buchungen!$B$6:$B$500,"Ausgabe",Buchungen!$H$6:$H$500,$B$2,Buchungen!$C$6:$C$500,$G8) -> € 2,150.00 | J8: -€ 10.00
A9: =DATE($B$2,3,1) -> 2026-03-01 | B9: =SUMIFS(Buchungen!$E$6:$E$500,Buchungen!$B$6:$B$500,"Einnahme",Buchungen!$H$6:$H$500,$B$2,Buchungen!$G$6:$G$500,MONTH($A9)) -> € 3,200.00 | C9: =-SUMIFS(Buchungen!$I$6:$I$500,Buchungen!$B$6:$B$500,"Ausgabe",Buchungen!$H$6:$H$500,$B$2,Buchungen!$G$6:$G$500,MONTH($A9)) -> € 1,712.00 | D9: € 1,488.00 | E9: =SUM($D$7:D9) -> € 4,542.00 | G9: Lebensmittel | H9: =IFERROR(VLOOKUP($G9,Listen!$A$34:$B$60,2,FALSE),0) -> € 420.00 | I9: =-SUMIFS(Buchungen!$I$6:$I$500,Buchungen!$B$6:$B$500,"Ausgabe",Buchungen!$H$6:$H$500,$B$2,Buchungen!$C$6:$C$500,$G9) -> € 4,839.00 | J9: -€ 201.00
A10: =DATE($B$2,4,1) -> 2026-04-01 | B10: =SUMIFS(Buchungen!$E$6:$E$500,Buchungen!$B$6:$B$500,"Einnahme",Buchungen!$H$6:$H$500,$B$2,Buchungen!$G$6:$G$500,MONTH($A10)) -> € 3,200.00 | C10: =-SUMIFS(Buchungen!$I$6:$I$500,Buchungen!$B$6:$B$500,"Ausgabe",Buchungen!$H$6:$H$500,$B$2,Buchungen!$G$6:$G$500,MONTH($A10)) -> € 1,804.00 | D10: € 1,396.00 | E10: =SUM($D$7:D10) -> € 5,938.00 | G10: Transport | H10: =IFERROR(VLOOKUP($G10,Listen!$A$34:$B$60,2,FALSE),0) -> € 90.00 | I10: =-SUMIFS(Buchungen!$I$6:$I$500,Buchungen!$B$6:$B$500,"Ausgabe",Buchungen!$H$6:$H$500,$B$2,Buchungen!$C$6:$C$500,$G10) -> € 588.00 | J10: -€ 492.00
A11: =DATE($B$2,5,1) -> 2026-05-01 | B11: =SUMIFS(Buchungen!$E$6:$E$500,Buchungen!$B$6:$B$500,"Einnahme",Buchungen!$H$6:$H$500,$B$2,Buchungen!$G$6:$G$500,MONTH($A11)) -> € 3,200.00 | C11: =-SUMIFS(Buchungen!$I$6:$I$500,Buchungen!$B$6:$B$500,"Ausgabe",Buchungen!$H$6:$H$500,$B$2,Buchungen!$G$6:$G$500,MONTH($A11)) -> € 1,612.00 | D11: € 1,588.00 | E11: =SUM($D$7:D11) -> € 7,526.00 | G11: Auto | H11: =IFERROR(VLOOKUP($G11,Listen!$A$34:$B$60,2,FALSE),0) -> € 140.00 | I11: =-SUMIFS(Buchungen!$I$6:$I$500,Buchungen!$B$6:$B$500,"Ausgabe",Buchungen!$H$6:$H$500,$B$2,Buchungen!$C$6:$C$500,$G11) -> € 0.00 | J11: -€ 1,680.00
A12: =DATE($B$2,6,1) -> 2026-06-01 | B12: =SUMIFS(Buchungen!$E$6:$E$500,Buchungen!$B$6:$B$500,"Einnahme",Buchungen!$H$6:$H$500,$B$2,Buchungen!$G$6:$G$500,MONTH($A12)) -> € 4,000.00 | C12: =-SUMIFS(Buchungen!$I$6:$I$500,Buchungen!$B$6:$B$500,"Ausgabe",Buchungen!$H$6:$H$500,$B$2,Buchungen!$G$6:$G$500,MONTH($A12)) -> € 1,727.00 | D12: € 2,273.00 | E12: =SUM($D$7:D12) -> € 9,799.00 | G12: Versicherungen | H12: =IFERROR(VLOOKUP($G12,Listen!$A$34:$B$60,2,FALSE),0) -> € 80.00 | I12: =-SUMIFS(Buchungen!$I$6:$I$500,Buchungen!$B$6:$B$500,"Ausgabe",Buchungen!$H$6:$H$500,$B$2,Buchungen!$C$6:$C$500,$G12) -> € 0.00 | J12: -€ 960.00
A13: =DATE($B$2,7,1) -> 2026-07-01 | B13: =SUMIFS(Buchungen!$E$6:$E$500,Buchungen!$B$6:$B$500,"Einnahme",Buchungen!$H$6:$H$500,$B$2,Buchungen!$G$6:$G$500,MONTH($A13)) -> € 3,200.00 | C13: =-SUMIFS(Buchungen!$I$6:$I$500,Buchungen!$B$6:$B$500,"Ausgabe",Buchungen!$H$6:$H$500,$B$2,Buchungen!$G$6:$G$500,MONTH($A13)) -> € 1,785.00 | D13: € 1,415.00 | E13: =SUM($D$7:D13) -> € 11,214.00 | G13: Gesundheit | H13: =IFERROR(VLOOKUP($G13,Listen!$A$34:$B$60,2,FALSE),0) -> € 50.00 | I13: =-SUMIFS(Buchungen!$I$6:$I$500,Buchungen!$B$6:$B$500,"Ausgabe",Buchungen!$H$6:$H$500,$B$2,Buchungen!$C$6:$C$500,$G13) -> € 0.00 | J13: -€ 600.00
A14: =DATE($B$2,8,1) -> 2026-08-01 | B14: =SUMIFS(Buchungen!$E$6:$E$500,Buchungen!$B$6:$B$500,"Einnahme",Buchungen!$H$6:$H$500,$B$2,Buchungen!$G$6:$G$500,MONTH($A14)) -> € 3,200.00 | C14: =-SUMIFS(Buchungen!$I$6:$I$500,Buchungen!$B$6:$B$500,"Ausgabe",Buchungen!$H$6:$H$500,$B$2,Buchungen!$G$6:$G$500,MONTH($A14)) -> € 2,646.00 | D14: € 554.00 | E14: =SUM($D$7:D14) -> € 11,768.00 | G14: Kleidung | H14: =IFERROR(VLOOKUP($G14,Listen!$A$34:$B$60,2,FALSE),0) -> € 60.00 | I14: =-SUMIFS(Buchungen!$I$6:$I$500,Buchungen!$B$6:$B$500,"Ausgabe",Buchungen!$H$6:$H$500,$B$2,Buchungen!$C$6:$C$500,$G14) -> € 0.00 | J14: -€ 720.00
A15: =DATE($B$2,9,1) -> 2026-09-01 | B15: =SUMIFS(Buchungen!$E$6:$E$500,Buchungen!$B$6:$B$500,"Einnahme",Buchungen!$H$6:$H$500,$B$2,Buchungen!$G$6:$G$500,MONTH($A15)) -> € 3,200.00 | C15: =-SUMIFS(Buchungen!$I$6:$I$500,Buchungen!$B$6:$B$500,"Ausgabe",Buchungen!$H$6:$H$500,$B$2,Buchungen!$G$6:$G$500,MONTH($A15)) -> € 1,747.00 | D15: € 1,453.00 | E15: =SUM($D$7:D15) -> € 13,221.00 | G15: Freizeit | H15: =IFERROR(VLOOKUP($G15,Listen!$A$34:$B$60,2,FALSE),0) -> € 120.00 | I15: =-SUMIFS(Buchungen!$I$6:$I$500,Buchungen!$B$6:$B$500,"Ausgabe",Buchungen!$H$6:$H$500,$B$2,Buchungen!$C$6:$C$500,$G15) -> € 1,261.00 | J15: -€ 179.00
A16: =DATE($B$2,10,1) -> 2026-10-01 | B16: =SUMIFS(Buchungen!$E$6:$E$500,Buchungen!$B$6:$B$500,"Einnahme",Buchungen!$H$6:$H$500,$B$2,Buchungen!$G$6:$G$500,MONTH($A16)) -> € 3,200.00 | C16: =-SUMIFS(Buchungen!$I$6:$I$500,Buchungen!$B$6:$B$500,"Ausgabe",Buchungen!$H$6:$H$500,$B$2,Buchungen!$G$6:$G$500,MONTH($A16)) -> € 1,774.00 | D16: € 1,426.00 | E16: =SUM($D$7:D16) -> € 14,647.00 | G16: Abos | H16: =IFERROR(VLOOKUP($G16,Listen!$A$34:$B$60,2,FALSE),0) -> € 35.00 | I16: =-SUMIFS(Buchungen!$I$6:$I$500,Buchungen!$B$6:$B$500,"Ausgabe",Buchungen!$H$6:$H$500,$B$2,Buchungen!$C$6:$C$500,$G16) -> € 420.00 | J16: € 0.00
A17: =DATE($B$2,11,1) -> 2026-11-01 | B17: =SUMIFS(Buchungen!$E$6:$E$500,Buchungen!$B$6:$B$500,"Einnahme",Buchungen!$H$6:$H$500,$B$2,Buchungen!$G$6:$G$500,MONTH($A17)) -> € 3,200.00 | C17: =-SUMIFS(Buchungen!$I$6:$I$500,Buchungen!$B$6:$B$500,"Ausgabe",Buchungen!$H$6:$H$500,$B$2,Buchungen!$G$6:$G$500,MONTH($A17)) -> € 1,654.00 | D17: € 1,546.00 | E17: =SUM($D$7:D17) -> € 16,193.00 | G17: Bildung | H17: =IFERROR(VLOOKUP($G17,Listen!$A$34:$B$60,2,FALSE),0) -> € 40.00 | I17: =-SUMIFS(Buchungen!$I$6:$I$500,Buchungen!$B$6:$B$500,"Ausgabe",Buchungen!$H$6:$H$500,$B$2,Buchungen!$C$6:$C$500,$G17) -> € 0.00 | J17: -€ 480.00
A18: =DATE($B$2,12,1) -> 2026-12-01 | B18: =SUMIFS(Buchungen!$E$6:$E$500,Buchungen!$B$6:$B$500,"Einnahme",Buchungen!$H$6:$H$500,$B$2,Buchungen!$G$6:$G$500,MONTH($A18)) -> € 3,200.00 | C18: =-SUMIFS(Buchungen!$I$6:$I$500,Buchungen!$B$6:$B$500,"Ausgabe",Buchungen!$H$6:$H$500,$B$2,Buchungen!$G$6:$G$500,MONTH($A18)) -> € 1,781.00 | D18: € 1,419.00 | E18: =SUM($D$7:D18) -> € 17,612.00 | G18: Urlaub | H18: =IFERROR(VLOOKUP($G18,Listen!$A$34:$B$60,2,FALSE),0) -> € 120.00 | I18: =-SUMIFS(Buchungen!$I$6:$I$500,Buchungen!$B$6:$B$500,"Ausgabe",Buchungen!$H$6:$H$500,$B$2,Buchungen!$C$6:$C$500,$G18) -> € 930.00 | J18: -€ 510.00
G19: Geschenke | H19: =IFERROR(VLOOKUP($G19,Listen!$A$34:$B$60,2,FALSE),0) -> € 30.00 | I19: =-SUMIFS(Buchungen!$I$6:$I$500,Buchungen!$B$6:$B$500,"Ausgabe",Buchungen!$H$6:$H$500,$B$2,Buchungen!$C$6:$C$500,$G19) -> € 0.00 | J19: -€ 360.00
G20: Haustiere | H20: =IFERROR(VLOOKUP($G20,Listen!$A$34:$B$60,2,FALSE),0) -> € 25.00 | I20: =-SUMIFS(Buchungen!$I$6:$I$500,Buchungen!$B$6:$B$500,"Ausgabe",Buchungen!$H$6:$H$500,$B$2,Buchungen!$C$6:$C$500,$G20) -> € 0.00 | J20: -€ 300.00
G21: Sonstiges | H21: =IFERROR(VLOOKUP($G21,Listen!$A$34:$B$60,2,FALSE),0) -> € 70.00 | I21: =-SUMIFS(Buchungen!$I$6:$I$500,Buchungen!$B$6:$B$500,"Ausgabe",Buchungen!$H$6:$H$500,$B$2,Buchungen!$C$6:$C$500,$G21) -> € 0.00 | J21: -€ 840.00

Sheet Listen
A1: Kategorien | E1: Zahlungsmittel | H1: Jahre
A2: Miete | E2: Bar | H2: 2024
A3: Nebenkosten | E3: Karte | H3: 2025
A4: Lebensmittel | E4: Überweisung | H4: 2026
A5: Transport | E5: Lastschrift | H5: 2027
A6: Auto | E6: PayPal | H6: 2028
A7: Versicherungen | E7: Sonstiges | H7: 2029
A8: Gesundheit | H8: 2030
A9: Kleidung
A10: Freizeit
A11: Abos
A12: Bildung
A13: Urlaub
A14: Geschenke
A15: Haustiere
A16: Sonstiges
A17: Gehalt
A18: Bonus
A19: Nebenjob
A20: Zinsen
A21: Rückerstattung
A33: Kategorie | B33: Budget/Monat (€) | C33: Notiz
A34: Miete | B34: € 950.00
A35: Nebenkosten | B35: € 180.00
A36: Lebensmittel | B36: € 420.00
A37: Transport | B37: € 90.00
A38: Auto | B38: € 140.00
A39: Versicherungen | B39: € 80.00
A40: Gesundheit | B40: € 50.00
A41: Kleidung | B41: € 60.00
A42: Freizeit | B42: € 120.00
A43: Abos | B43: € 35.00
A44: Bildung | B44: € 40.00
A45: Urlaub | B45: € 120.00
A46: Geschenke | B46: € 30.00
A47: Haustiere | B47: € 25.00
A48: Sonstiges | B48: € 70.00
